bitfinex/quotes_ETHUSD_20250908
["timestamp","ask_amount","ask_price","bid_price","bid_amount"]
[1757337806150,12.301,4344.5,4344.4,43.16132698]
[1757337807468,13.531,4344.5,4344.4,43.16132698]
[1757337808608,13.531,4344.5,4344.4,42.72252698]
[1757337808765,14.761,4344.5,4344.4,42.72252698]
[1757337809502,14.761,4344.5,4344.4,43.16132698]
[1757337809995,14.761,4344.5,4344.4,42.72252698]
[1757337810200,15.991,4344.5,4344.4,42.72252698]
[1757337811409,15.991,4344.5,4344.4,43.51452698]
[1757337811613,17.221,4344.5,4344.4,43.51452698]
[1757337813012,18.4502,4344.5,4344.4,43.51452698]
[1757337813400,18.4502,4344.5,4344.4,43.95332698]
[1757337813599,0.001,4344.7,4344.5,6.09376084]
[1757337813801,0.001,4344.7,4344.6,11.93270786]
[1757337814000,0.001,4344.7,4344.6,41.93270786]
[1757337814330,1.5436,4344.7,4344.6,41.93270786]
[1757337814674,1.5436,4344.7,4344.6,11.93270786]
[1757337814878,1.5436,4344.7,4344.6,41.93270786]
[1757337815102,1.5436,4344.7,4344.6,42.62309388]
[1757337815620,3.2252,4344.7,4344.6,41.83109388]
[1757337816220,2.7736,4344.7,4344.6,41.83109388]
[1757337816422,2.461,4344.7,4344.6,41.83109388]
[1757337816722,2.7736,4344.7,4344.6,11.83109388]
[1757337816937,4.0036,4344.7,4344.6,41.83109388]
[1757337817716,4.0036,4344.7,4344.6,11.83109388]
[1757337817907,4.0036,4344.7,4344.6,41.83109388]
[1757337818332,5.6852,4344.7,4344.6,41.83109388]
[1757337818515,4.921,4344.7,4344.6,41.83109388]
[1757337819143,5.2336,4344.7,4344.6,41.83109388]
[1757337819390,5.6852,4344.7,4344.6,37.75909388]
[1757337819523,8.60062,4344.7,4344.6,0.69038602]
[1757337819700,9.83062,4344.7,4344.6,0.69038602]
[1757337820231,9.83062,4344.7,4344.2,6.37188039]
[1757337820394,6.8639,4344.6,4344.1,0.002]
[1757337820595,1.671952,4344.5,4344.1,0.002]
[1757337820794,0.3126,4344.2,4344.1,0.002]
[1757337821245,3.1065,4344.2,4344.1,0.002]
[1757337822532,19.58961983,4344.2,4344.1,0.002]
[1757337822845,12.4754198,4344.2,4344.1,0.002]
[1757337823001,14.74332777,4344.2,4344.1,0.002]
[1757337823199,21.8575278,4344.2,4344.1,0.002]
[1757337824002,15.97332777,4344.2,4344.1,0.002]
[1757337825306,17.20332777,4344.2,4344.1,0.002]
[1757337826712,18.43332777,4344.2,4344.1,0.002]
[1757337827220,19.22532777,4344.2,4344.1,0.002]
[1757337828026,20.45532777,4344.2,4344.1,0.002]
[1757337828745,27.5695278,4344.2,4344.1,0.002]
[1757337829319,28.7995278,4344.2,4344.1,0.002]
[1757337830515,30.0295278,4344.2,4344.1,0.002]
[1757337831108,30.0285278,4344.2,4344.1,0.002]
[1757337831834,30.0285278,4344.2,4343.7,0.002]
[1757337831835,3.09413177,4343.8,4343.7,0.002]
[1757337832003,14.59718498,4343.8,4343.7,0.002]
[1757337832209,17.70368498,4343.8,4343.7,0.002]
[1757337832649,17.79581511,4343.8,4343.7,0.002]
[1757337833330,19.02581511,4343.8,4343.7,0.002]
[1757337834472,11.91161508,4343.8,4343.7,0.002]
[1757337834608,13.14161508,4343.8,4343.7,0.002]
[1757337835612,9.07361508,4343.8,4343.7,0.002]
[1757337835945,13.14161508,4343.8,4343.7,0.002]
[1757337836146,14.37161508,4343.8,4343.7,0.002]
[1757337836333,10.30361508,4343.8,4343.7,0.002]
[1757337836533,14.37061508,4343.8,4343.7,0.002]
[1757337836745,13.57861508,4343.8,4343.7,0.002]
[1757337837050,9.51161508,4343.8,4343.7,0.002]
[1757337837345,13.57861508,4343.8,4343.7,0.002]
[1757337837544,14.80861508,4343.8,4343.7,0.002]
[1757337837955,14.71648495,4343.8,4343.7,0.002]
[1757337838110,10.64948495,4343.8,4343.7,0.002]
[1757337838333,10.64868495,4343.8,4343.7,0.002]
[1757337838752,14.71568495,4343.8,4343.7,0.002]
[1757337838987,3.09423777,4343.6,4343.5,1e-08]
[1757337839141,9.08588267,4343.6,4343.5,1e-08]
[1757337839502,12.20728267,4343.6,4343.5,1e-08]
[1757337840331,13.43728267,4343.6,4343.5,1e-08]
[1757337840837,13.43628267,4343.6,4343.5,1e-08]
[1757337841466,13.25608267,4343.6,4343.5,1e-08]
[1757337841673,18.55208267,4343.6,4343.5,1e-08]
[1757337842645,18.11748267,4343.6,4343.5,1e-08]
[1757337842982,14.48608267,4343.6,4343.5,1e-08]
[1757337843184,19.13501386,4343.6,4343.5,0.31170001]
[1757337843539,19.13501386,4343.6,4343.5,1e-08]
[1757337843739,19.34748267,4343.6,4343.5,1e-08]
[1757337843939,19.04288267,4343.6,4343.5,1e-08]
[1757337844381,19.34748267,4343.6,4343.5,1e-08]
[1757337844579,20.27288267,4343.6,4343.5,1e-08]
[1757337845477,18.34723777,4343.6,4343.5,3.03990001]
[1757337846043,19.57723777,4343.6,4343.5,3.03990001]
[1757337846277,19.57723777,4343.6,4343.5,2.60660001]
[1757337846656,10.215,4343.6,4343.5,2.60660001]
[1757337846860,6.15,4343.6,4343.5,3.03990001]
[1757337847081,6.15,4343.6,4343.5,1e-08]
[1757337847082,12.82183777,4343.6,4343.5,1e-08]
[1757337847281,14.94923821,4343.6,4343.5,1e-08]
[1757337847495,16.17923821,4343.6,4343.5,1e-08]
[1757337848758,17.40923821,4343.6,4343.5,1e-08]
[1757337849179,17.10463821,4343.6,4343.5,1e-08]
[1757337849878,17.40923821,4343.6,4343.5,1e-08]
[1757337850085,18.63923821,4343.6,4343.5,1e-08]
[1757337850259,19.07383821,4343.6,4343.5,1e-08]
[1757337850467,21.45603821,4343.6,4343.5,1e-08]
[1757337850649,19.07383821,4343.6,4343.5,1e-08]
[1757337851557,19.86823821,4343.6,4343.5,1e-08]
[1757337852165,15.80423821,4343.6,4343.5,1e-08]
[1757337852352,19.56263821,4343.6,4343.5,1e-08]
[1757337852684,15.49963821,4343.6,4343.5,0.31170001]
[1757337852885,20.79263821,4343.6,4343.5,0.31170001]
[1757337853252,20.79263821,4343.6,4343.5,2.60660001]
[1757337854185,16.72963821,4343.6,4343.5,2.60660001]
[1757337854374,22.02263821,4343.6,4343.5,2.60660001]
[1757337854752,22.02163821,4343.6,4343.5,2.60660001]
[1757337854953,19.89423777,4343.6,4343.5,2.60660001]
[1757337855675,21.12423777,4343.6,4343.5,2.60660001]
[1757337856251,21.12423777,4343.6,4343.5,0.31170001]
[1757337857380,22.35423777,4343.6,4343.5,0.31170001]
[1757337857576,18.29223777,4343.6,4343.5,2.60660001]
[1757337857898,18.29223777,4343.6,4343.5,3.03990001]
[1757337858101,22.35323777,4343.6,4343.5,3.03990001]
[1757337858459,22.35323777,4343.6,4343.5,2.60660001]
[1757337858898,23.58323777,4343.6,4343.5,2.60660001]
[1757337859891,17.22,4343.6,4343.5,3.03990001]
[1757337860086,21.28,4343.6,4343.5,3.03990001]
[1757337860259,17.22,4343.6,4343.5,8.87661703]
[1757337860459,18.45,4343.6,4343.5,8.87661703]
[1757337861100,18.45,4343.6,4343.5,6.57432626]
[1757337862016,19.681,4343.6,4343.5,6.57432626]
[1757337862311,19.681,4343.6,4343.5,8.34219078]
[1757337862656,19.681,4343.6,4343.5,1e-08]
[1757337862657,21.98323777,4343.6,4343.5,1e-08]
[1757337862859,25.10463777,4343.6,4343.5,1e-08]
[1757337863485,26.33463777,4343.6,4343.5,1e-08]
[1757337863890,28.60174574,4343.6,4343.5,1e-08]
[1757337864922,29.83174574,4343.6,4343.5,1e-08]
[1757337865071,27.44954574,4343.6,4343.5,1e-08]
[1757337866201,31.00334574,4343.6,4343.5,1e-08]
[1757337866399,32.77134574,4343.6,4343.5,1e-08]
[1757337867665,34.79334574,4343.6,4343.5,1e-08]
[1757337867878,35.28933041,4343.6,4343.5,1e-08]
[1757337868167,35.45963121,4343.6,4343.5,1e-08]
[1757337868770,35.55177258,4343.6,4343.5,1e-08]
[1757337869105,36.53094574,4343.6,4343.5,1e-08]
[1757337869426,30.17070797,4343.6,4343.5,1e-08]
[1757337869584,33.95743777,4343.6,4343.5,0.31030001]
[1757337869767,33.95743777,4343.6,4343.5,2.57940001]
[1757337869976,33.95743777,4343.6,4343.5,3.03170001]
[1757337870219,34.70693777,4343.6,4343.5,1e-08]
[1757337870518,40.52864574,4343.6,4343.5,1e-08]
[1757337871204,38.20484574,4343.6,4343.5,1e-08]
[1757337871718,31.13043777,4343.6,4343.5,1e-08]
[1757337871878,32.65693777,4343.6,4343.5,1e-08]
[1757337872075,36.71293777,4343.6,4343.5,1e-08]
[1757337872303,30.0582,4343.6,4343.5,2.57940001]
[1757337872475,34.2286,4343.6,4343.5,3.03170001]
[1757337872800,30.1726,4343.6,4343.5,2.57940001]
[1757337872998,32.47483777,4343.6,4343.5,1e-08]
[1757337873303,37.76083777,4343.6,4343.5,1e-08]
[1757337873671,37.76083777,4343.6,4343.5,0.31030001]
[1757337874713,38.99083777,4343.6,4343.5,0.31030001]
[1757337875010,34.93483777,4343.6,4343.5,0.31030001]
[1757337875373,38.98983777,4343.6,4343.5,0.31030001]
[1757337875819,32.6326,4343.6,4343.5,0.31030001]
[1757337876030,37.9176,4343.6,4343.5,3.03170001]
[1757337876239,40.21983777,4343.6,4343.5,3.03170001]
[1757337877074,33.8626,4343.6,4343.5,3.03170001]
[1757337877344,37.8022,4343.6,4343.5,3.03170001]
[1757337877564,39.0322,4343.6,4343.5,3.03170001]
[1757337878348,39.0322,4343.6,4343.5,2.57940001]
[1757337878552,39.1466,4343.6,4343.5,2.57940001]
[1757337879057,42.67883777,4343.6,4343.5,2.57940001]
[1757337879432,40.3766,4343.6,4343.5,2.57940001]
[1757337879630,40.3766,4343.6,4343.5,3.03170001]
[1757337880435,41.6066,4343.6,4343.5,3.03170001]
[1757337881959,43.90883777,4343.6,4343.5,3.03170001]
[1757337882112,45.13883777,4343.6,4343.5,3.03170001]
[1757337882303,45.13783777,4343.6,4343.5,3.03170001]
[1757337882707,42.8356,4343.6,4343.5,3.03170001]
[1757337882936,45.13783777,4343.6,4343.5,2.57940001]
[1757337883122,45.13783777,4343.6,4343.5,0.31030001]
[1757337883325,46.36783777,4343.6,4343.5,0.31030001]
[1757337883543,46.36683777,4343.6,4343.5,0.31030001]
[1757337884544,46.36683777,4343.6,4343.5,1e-08]
[1757337884545,49.38424574,4343.6,4343.5,1e-08]
[1757337884842,52.93804574,4343.6,4343.5,1e-08]
[1757337885838,62.14670982,4343.6,4343.5,1e-08]
[1757337886052,54.96004574,4343.6,4343.5,1e-08]
[1757337886255,3.09450282,4343.1,4343.0,1e-08]
[1757337886406,7.68519624,4343.1,4343.0,1e-08]
[1757337886608,10.75849624,4343.1,4343.0,1e-08]
[1757337886926,5.91549624,4343.1,4343.0,1e-08]
[1757337887146,9.96649624,4343.1,4343.0,1e-08]
[1757337887300,11.19649624,4343.1,4343.0,1e-08]
[1757337888641,12.42649624,4343.1,4343.0,1e-08]
[1757337889319,12.42569624,4343.1,4343.0,1e-08]
[1757337889711,5.59789624,4343.1,4343.0,1e-08]
[1757337889911,5.30139624,4343.1,4343.0,1e-08]
[1757337890110,10.58139624,4343.1,4343.0,1e-08]
[1757337890302,10.87789624,4343.1,4343.0,1e-08]
[1757337891039,11.33089624,4343.1,4343.0,1e-08]
[1757337891442,8.51089624,4343.1,4343.0,1e-08]
[1757337891648,12.56089624,4343.1,4343.0,1e-08]
[1757337891846,8.51089624,4343.1,4343.0,1e-08]
[1757337892153,12.56089624,4343.1,4343.0,1e-08]
[1757337892535,8.51089624,4343.1,4343.0,1e-08]
[1757337892737,12.56089624,4343.1,4343.0,1e-08]
[1757337892935,13.79089624,4343.1,4343.0,1e-08]
[1757337894323,13.78989624,4343.1,4343.0,1e-08]
[1757337894523,15.01989624,4343.1,4343.0,1e-08]
[1757337894749,22.14670742,4343.1,4343.0,1e-08]
[1757337895252,24.44780742,4343.1,4343.0,1e-08]
[1757337895752,25.67780742,4343.1,4343.0,1e-08]
[1757337897239,26.90780742,4343.1,4343.0,1e-08]
[1757337897854,26.90780742,4343.1,4342.8,1e-08]
[1757337897855,3.09460885,4342.9,4342.8,1e-08]
[1757337898155,12.90616515,4342.9,4342.8,1e-08]
[1757337898472,0.792,4342.4,4342.1,1e-08]
[1757337898763,0.792,4342.2,4342.1,1e-08]
[1757337898965,3.89782838,4342.2,4342.1,1e-08]
[1757337899151,6.63972838,4342.2,4342.1,1e-08]
[1757337899349,8.90763635,4342.2,4342.1,1e-08]
[1757337900165,10.13763635,4342.2,4342.1,1e-08]
[1757337900368,5.80088802,4342.2,4342.1,1e-08]
[1757337900568,7.57998005,4342.2,4342.1,0.00200001]
[1757337900727,7.88718005,4342.2,4342.1,0.00200001]
[1757337900929,7.57998005,4342.2,4342.1,0.00200001]
[1757337901128,3.53298005,4342.2,4342.1,0.31320001]
[1757337901378,7.57998005,4342.2,4342.1,3.14250001]
[1757337901528,3.53298005,4342.2,4342.1,3.14250001]
[1757337901735,8.80998005,4342.2,4342.1,2.69180001]
[1757337902035,2.46,4342.2,4342.1,3.14250001]
[1757337902344,6.507,4342.2,4342.1,3.14250001]
[1757337902668,6.506,4342.2,4342.1,3.14250001]
[1757337903230,7.736,4342.2,4342.1,3.14250001]
[1757337903841,10.03898005,4342.2,4342.1,0.00200001]
[1757337904042,11.4499665,4342.2,4342.1,0.00200001]
[1757337904365,11.7571665,4342.2,4342.1,0.00200001]
[1757337904661,12.6799665,4342.2,4342.1,0.00200001]
[1757337905361,11.26898005,4342.2,4342.1,0.00200001]
[1757337905765,11.57618005,4342.2,4342.1,0.00200001]
[1757337905931,16.34008005,4342.2,4342.1,0.00200001]
[1757337906130,19.83495538,4342.2,4342.1,0.00200001]
[1757337906333,19.83480358,4342.2,4342.1,0.00200001]
[1757337906563,22.10271155,4342.2,4342.1,0.00200001]
[1757337907473,22.83798802,4342.2,4342.1,0.00200001]
[1757337908969,24.06798802,4342.2,4342.1,0.00200001]
[1757337909758,24.06698802,4342.2,4342.1,0.00200001]
[1757337910140,25.29698802,4342.2,4342.1,0.00200001]
[1757337910961,21.25198802,4342.2,4342.1,0.00200001]
[1757337911169,25.29598802,4342.2,4342.1,0.00200001]
[1757337911348,25.79060629,4342.2,4342.1,0.00200001]
[1757337911677,3.09513917,4341.9,4341.8,1e-08]
[1757337911881,10.13913917,4341.9,4341.8,1e-08]
[1757337912047,13.68285744,4341.9,4341.8,1e-08]
[1757337912981,14.91285744,4341.9,4341.8,1e-08]
[1757337913344,11.37895744,4341.9,4341.8,1e-08]
[1757337913557,12.84504714,4341.9,4341.8,1e-08]
[1757337913873,8.80104714,4341.9,4341.8,1e-08]
[1757337914176,9.59304714,4341.9,4341.8,1e-08]
[1757337914380,14.86604714,4341.9,4341.8,1e-08]
[1757337914577,14.86524714,4341.9,4341.8,1e-08]
[1757337914876,4.76233917,4341.9,4341.8,2.68980001]
[1757337915076,8.80533917,4341.9,4341.8,3.14050001]
[1757337915440,4.76233917,4341.9,4341.8,3.14050001]
[1757337915643,8.80533917,4341.9,4341.8,3.14050001]
[1757337915864,10.03533917,4341.9,4341.8,3.14050001]
[1757337916066,3.69,4341.9,4341.8,3.14050001]
[1757337916259,7.733,4341.9,4341.8,3.14050001]
[1757337916980,7.732,4341.9,4341.8,3.14050001]
[1757337917180,11.26513917,4341.9,4341.8,3.14050001]
[1757337917372,8.962,4341.9,4341.8,3.14050001]
[1757337918575,10.192,4341.9,4341.8,3.14050001]
[1757337919752,6.15,4341.9,4341.8,3.14250001]
[1757337919985,11.422,4341.9,4341.8,3.14250001]
[1757337921285,12.652,4341.9,4341.8,3.14250001]
[1757337921992,8.611,4341.9,4341.8,3.14250001]
[1757337922192,12.652,4341.9,4341.8,3.14250001]
[1757337922556,9.841,4341.9,4341.8,3.14250001]
[1757337922761,13.881,4341.9,4341.8,3.14250001]
[1757337923283,16.18413917,4341.9,4341.8,3.14250001]
[1757337923980,17.41413917,4341.9,4341.8,3.14250001]
[1757337924183,15.111,4341.9,4341.8,3.14250001]
[1757337925187,11.071,4341.9,4341.8,3.14250001]
[1757337925396,16.34,4341.9,4341.8,3.14250001]
[1757337926089,19.29057468,4341.9,4341.8,0.00200001]
[1757337926474,19.73487468,4341.9,4341.8,0.00200001]
[1757337926660,20.96487468,4341.9,4341.8,0.00200001]
[1757337927056,24.21437468,4341.9,4341.8,0.00200001]
[1757337927287,24.70995301,4341.9,4341.8,0.00200001]
[1757337927955,24.71001028,4341.9,4341.8,0.00200001]
[1757337928153,25.94001028,4341.9,4341.8,0.00200001]
[1757337928752,18.20721028,4341.9,4341.8,0.00200001]
[1757337928956,21.74957468,4341.9,4341.8,0.00200001]
[1757337929157,31.78178675,4341.9,4341.8,0.00200001]
[1757337929459,29.32428675,4341.9,4341.8,0.00200001]
[1757337929660,30.55428675,4341.9,4341.8,0.00200001]
[1757337930390,24.21587468,4341.9,4341.8,0.00200001]
[1757337930582,27.16896674,4341.9,4341.8,0.00200001]
[1757337931098,28.39896674,4341.9,4341.8,0.00200001]
[1757337931613,21.45916674,4341.9,4341.8,0.00200001]
[1757337931896,25.49616674,4341.9,4341.8,0.00200001]
[1757337932103,25.94046674,4341.9,4341.8,0.00200001]
[1757337932394,29.62796674,4341.9,4341.8,0.00200001]
[1757337933788,30.85796674,4341.9,4341.8,0.00200001]
[1757337934059,24.36346674,4341.9,4341.8,0.00200001]
[1757337934393,27.15127468,4341.9,4341.8,0.00200001]
[1757337935014,23.11527468,4341.9,4341.8,0.00200001]
[1757337935315,27.25013917,4341.9,4341.8,3.02850001]
[1757337936176,27.25013917,4341.9,4341.8,2.58760001]
[1757337936369,27.25013917,4341.9,4341.8,0.29200001]
[1757337936570,28.48013917,4341.9,4341.8,0.29200001]
[1757337936770,31.50064714,4341.9,4341.8,0.00200001]
[1757337937066,30.74704714,4341.9,4341.8,2.58760001]
[1757337937286,28.47913917,4341.9,4341.8,0.29200001]
[1757337937896,29.70913917,4341.9,4341.8,0.29200001]
[1757337938171,27.406,4341.9,4341.8,3.02850001]
[1757337938387,29.70913917,4341.9,4341.8,2.58760001]
[1757337938588,29.70913917,4341.9,4341.8,0.29200001]
[1757337939313,30.93913917,4341.9,4341.8,3.02850001]
[1757337939516,28.636,4341.9,4341.8,3.02850001]
[1757337939822,30.93913917,4341.9,4341.8,3.02850001]
[1757337940040,26.90333917,4341.9,4341.8,3.02850001]
[1757337940217,30.93833917,4341.9,4341.8,3.02850001]
[1757337940530,32.16833917,4341.9,4341.8,0.29200001]
[1757337940839,33.37310548,4341.9,4341.8,0.00200001]
[1757337942001,27.0602,4341.9,4341.8,2.58760001]
[1757337942331,27.1746,4341.9,4341.8,3.02850001]
[1757337942517,31.2076,4341.9,4341.8,3.02850001]
[1757337943291,33.51073917,4341.9,4341.8,3.02850001]
[1757337943610,28.4046,4341.9,4341.8,3.02850001]
[1757337943812,30.70773917,4341.9,4341.8,3.02850001]
[1757337944020,34.74073917,4341.9,4341.8,2.58760001]
[1757337944798,30.70773917,4341.9,4341.8,2.58760001]
[1757337945006,35.96973917,4341.9,4341.8,2.58760001]
[1757337945428,33.6666,4341.9,4341.8,2.58760001]
[1757337945640,33.6666,4341.9,4341.8,3.02850001]
[1757337946149,35.96973917,4341.9,4341.8,3.02850001]
[1757337946304,37.19973917,4341.9,4341.8,3.02850001]
[1757337947437,37.19973917,4341.9,4341.8,2.58760001]
[1757337947734,38.42973917,4341.9,4341.8,2.58760001]
[1757337948540,36.1266,4341.9,4341.8,2.58760001]
[1757337948716,36.1266,4341.9,4341.8,3.02850001]
[1757337949118,38.42973917,4341.9,4341.8,3.02850001]
[1757337949331,39.65973917,4341.9,4341.8,3.02850001]
[1757337949859,39.65973917,4341.9,4341.8,2.58760001]
[1757337950229,37.3566,4341.9,4341.8,2.58760001]
[1757337950433,37.3566,4341.9,4341.8,3.02850001]
[1757337950754,40.88973917,4341.9,4341.8,3.02850001]
[1757337951657,40.88973917,4341.9,4341.8,2.58760001]
[1757337951854,34.5546,4341.9,4341.8,2.58760001]
[1757337952020,39.7002,4341.9,4341.8,3.02850001]
[1757337952967,39.7002,4341.9,4341.8,2.58760001]
[1757337952968,42.00333917,4341.9,4341.8,2.58760001]
[1757337953114,39.7002,4341.9,4341.8,2.58760001]
[1757337953314,40.9302,4341.9,4341.8,2.58760001]
[1757337953750,40.9302,4341.9,4341.8,0.29200001]
[1757337953751,43.23333917,4341.9,4341.8,0.29200001]
[1757337954722,44.46333917,4341.9,4341.8,0.29200001]
[1757337956444,45.69333917,4341.9,4341.8,0.29200001]
[1757337956938,43.3902,4341.9,4341.8,0.29200001]
[1757337957154,43.3902,4341.9,4341.8,3.00720001]
[1757337957637,39.3602,4341.9,4341.8,3.00720001]
[1757337957842,44.6182,4341.9,4341.8,3.00720001]
[1757337958165,44.6172,4341.9,4341.8,3.00720001]
[1757337959050,44.6172,4341.9,4341.8,2.54600001]
[1757337959259,45.8472,4341.9,4341.8,3.00720001]
[1757337960573,47.0772,4341.9,4341.8,3.00720001]
[1757337961037,47.0762,4341.9,4341.8,3.00720001]
[1757337961974,48.3062,4341.9,4341.8,3.00720001]
[1757337962661,44.2802,4341.9,4341.8,3.00720001]
[1757337962973,48.3062,4341.9,4341.8,3.00720001]
[1757337963473,45.5102,4341.9,4341.8,3.00720001]
[1757337963652,49.5352,4341.9,4341.8,3.00720001]
[1757337964667,50.7652,4341.9,4341.8,3.00720001]
[1757337965096,46.7402,4341.9,4341.8,3.00720001]
[1757337965241,50.7652,4341.9,4341.8,3.00720001]
[1757337965441,50.7644,4341.9,4341.8,3.00720001]
[1757337966174,51.9944,4341.9,4341.8,2.54600001]
[1757337967377,47.9694,4341.9,4341.8,2.54600001]
[1757337967577,53.2234,4341.9,4341.8,2.54600001]
[1757337967963,53.2234,4341.9,4341.8,3.00720001]
[1757337968445,53.5258,4341.9,4341.8,0.00200001]
[1757337968843,53.5258,4341.9,4341.8,5.32179223]
[1757337968844,54.4524,4341.9,4341.8,5.32179223]
[1757337969181,54.4524,4341.9,4341.8,3.01860001]
[1757337969477,54.4524,4341.9,4341.8,5.32179223]
[1757337969681,54.4524,4341.9,4341.8,3.01860001]
[1757337969897,54.4524,4341.9,4341.8,5.32179223]
[1757337970106,54.4524,4341.9,4341.8,3.01860001]
[1757337970303,51.6594,4341.9,4341.8,2.55740001]
[1757337970516,51.6594,4341.9,4341.8,0.30340001]
[1757337970686,55.6814,4341.9,4341.8,0.30340001]
[1757337971299,55.6814,4341.9,4341.8,4.86059223]
[1757337971467,55.6814,4341.9,4341.8,3.01860001]
[1757337971672,56.9114,4341.9,4341.8,3.01860001]
[1757337971872,56.9114,4341.9,4341.8,2.55740001]
[1757337972683,56.9114,4341.9,4341.8,0.30340001]
[1757337973211,58.1414,4341.9,4341.8,0.30340001]
[1757337973567,58.1414,4341.9,4341.8,0.00200001]
[1757337973970,65.72274714,4341.9,4341.8,0.00200001]
[1757337974320,61.70074714,4341.9,4341.8,0.00200001]
[1757337974621,61.70074714,4341.9,4341.6,0.002]
[1757337974622,2.30324527,4341.7,4341.6,0.002]
[1757337974965,16.03351668,4341.7,4341.6,0.002]
[1757337975126,2.30340443,4341.4,4341.3,1e-08]
[1757337975290,10.85720515,4341.4,4341.3,1e-08]
[1757337975487,13.86750515,4341.4,4341.3,1e-08]
[1757337975975,15.09750515,4341.4,4341.3,1e-08]
[1757337976608,15.09750515,4341.4,4340.5,0.002]
[1757337976609,3.09556361,4341.1,4340.5,0.002]
[1757337976909,16.03283502,4341.1,4340.5,0.002]
[1757337977096,21.31104299,4341.1,4340.5,0.002]
[1757337977406,22.04415024,4341.1,4340.5,0.002]
[1757337978323,13.62377158,4341.1,4340.5,0.002]
[1757337978824,10.9259601,4341.1,4340.5,0.002]
[1757337979134,11.78577158,4341.1,4340.5,0.002]
[1757337979415,14.06177158,4341.1,4340.5,0.002]
[1757337979722,10.04177158,4341.1,4340.5,0.002]
[1757337979926,11.78577158,4341.1,4340.5,0.002]
[1757337980211,11.35387158,4341.1,4340.5,0.002]
[1757337980508,8.56387158,4341.1,4340.5,0.002]
[1757337980707,12.28047158,4341.1,4340.5,2.256]
[1757337980895,3.69,4341.1,4341.0,3.0186]
[1757337981106,3.69,4341.1,4341.0,5.32221667]
[1757337981412,7.709,4341.1,4341.0,5.32221667]
[1757337981589,3.69,4341.1,4341.0,5.32221667]
[1757337981793,4.92,4341.1,4341.0,9.08751037]
[1757337983120,6.15,4341.1,4341.0,9.08751037]
[1757337983305,6.15,4341.1,4341.0,8.32221667]
[1757337983990,6.15,4341.1,4341.0,8.43661667]
[1757337984518,7.38,4341.1,4341.0,8.43661667]
[1757337985416,7.38,4341.1,4341.0,6.133]
[1757337985619,7.38,4341.1,4341.0,8.43661667]
[1757337985816,8.61,4341.1,4341.0,8.43661667]
[1757337987320,9.84,4341.1,4341.0,8.43661667]
[1757337987907,9.84,4341.1,4341.0,9.51335045]
[1757337988600,11.07,4341.1,4341.0,5.6718]
[1757337988791,15.087,4341.1,4341.0,3.3089]
[1757337989192,15.087,4341.1,4341.0,6.2249]
[1757337989599,15.086,4341.1,4341.0,6.2249]
[1757337989802,16.316,4341.1,4341.0,6.2249]
[1757337990220,16.316,4341.1,4341.0,3.3089]
[1757337991043,16.3152,4341.1,4341.0,3.3089]
[1757337991245,17.5452,4341.1,4341.0,3.3089]
[1757337991540,17.5452,4341.1,4341.0,3.002]
[1757337991905,18.41225894,4341.1,4341.0,3.002]
[1757337992660,17.8341,4341.1,4341.0,3.002]
[1757337992835,19.0641,4341.1,4341.0,3.002]
[1757337993233,21.79586361,4341.1,4341.0,0.002]
[1757337993438,21.91026361,4341.1,4341.0,0.002]
[1757337993758,21.91126361,4341.1,4341.0,0.002]
[1757337993920,24.17917158,4341.1,4341.0,0.002]
[1757337994121,26.50127158,4341.1,4341.0,0.002]
[1757337994322,27.73127158,4341.1,4341.0,0.002]
[1757337995766,28.96127158,4341.1,4341.0,0.002]
[1757337996344,26.63917158,4341.1,4341.0,0.002]
[1757337996548,28.96127158,4341.1,4341.0,0.002]
[1757337996960,30.19127158,4341.1,4341.0,0.002]
[1757337998068,27.86917158,4341.1,4341.0,0.002]
[1757337998473,29.09917158,4341.1,4341.0,0.002]
[1757337999387,19.6802,4341.1,4341.0,0.3089]
[1757337999694,23.6942,4341.1,4341.0,2.7561]
[1757337999894,24.9242,4341.1,4341.0,2.7561]
[1757338000805,20.9102,4341.1,4341.0,2.7561]
[1757338001012,24.9232,4341.1,4341.0,2.7561]
[1757338001217,26.1532,4341.1,4341.0,2.7561]
[1757338002569,27.3832,4341.1,4341.0,2.7561]
[1757338003718,23.3702,4341.1,4341.0,3.2249]
[1757338003869,28.6122,4341.1,4341.0,3.2249]
[1757338004272,28.6122,4341.1,4341.0,2.7561]
[1757338005017,28.6122,4341.1,4341.0,3.2249]
[1757338005177,25.8302,4341.1,4341.0,3.2249]
[1757338005508,29.8412,4341.1,4341.0,3.2249]
[1757338005894,25.8302,4341.1,4341.0,8.05971667]
[1757338006085,25.8302,4341.1,4341.0,39.20991867]
[1757338006808,27.0602,4341.1,4341.0,39.20991867]
[1757338008014,28.2902,4341.1,4341.0,39.20991867]
[1757338009078,28.2902,4341.1,4341.0,13.21991867]
[1757338009303,29.5202,4341.1,4341.0,43.21991867]
[1757338010538,29.5202,4341.1,4341.0,9.8805]
[1757338010682,30.7502,4341.1,4341.0,7.4333]
[1757338012086,35.4763,4341.1,4341.0,3.002]
[1757338012313,36.2781,4341.1,4341.0,3.002]
[1757338013608,37.5081,4341.1,4341.0,3.002]
[1757338015557,38.7381,4341.1,4341.0,3.002]
[1757338016435,38.7373,4341.1,4341.0,3.002]
[1757338016910,39.9673,4341.1,4341.0,3.002]
[1757338018234,37.1883,4341.1,4341.0,3.002]
[1757338019737,38.8793,4341.1,4341.0,3.002]
[1757338019899,38.8793,4341.1,4341.0,0.002]
[1757338020333,38.4183,4341.1,4341.0,0.002]
[1757338020733,42.1354,4341.1,4341.0,2.5685]
[1757338021163,43.3654,4341.1,4341.0,0.2932]
[1757338021469,43.6619,4341.1,4341.0,0.002]
[1757338021969,39.3594,4341.1,4341.0,0.2932]
[1757338022266,44.1219,4341.1,4341.0,0.002]
[1757338022774,45.3519,4341.1,4341.0,0.002]
[1757338024041,46.5819,4341.1,4341.0,0.002]
[1757338024240,51.28576361,4341.1,4341.0,0.002]
[1757338024569,51.25010797,4341.1,4341.0,0.002]
[1757338024748,46.5819,4341.1,4341.0,0.002]
[1757338025565,47.8119,4341.1,4341.0,0.002]
[1757338025836,47.3509,4341.1,4341.0,0.002]